fUST/lending_fUST_20251118
["ID","MTS","AMOUNT","RATE_DAILY","PERIOD"]
[394240895,1763402838545,-729.42,0.00041369,120]
[394240896,1763402838565,-500.0,0.00041369,120]
[394240897,1763402838584,-500.0,0.00041369,120]
[394240898,1763402838604,-500.0,0.00041369,120]
[394240899,1763402838623,-1000.0,0.00041369,2]
[394240900,1763402838643,-500.0,0.00041369,120]
[394240901,1763402838663,-500.0,0.0004137,120]
[394240902,1763402838684,-65097.73949223,0.0004143,3]
[394240903,1763402838751,-23032.24137,0.0004143,3]
[394240904,1763402847097,-193.85341116,0.00032777,2]
[394240905,1763402847118,-500.0,0.00033536,7]
[394240906,1763402847138,-1075.54,0.00037998,10]
[394240907,1763402847160,-8795.70806364,0.0004134,2]
[394240908,1763402847179,-130513.8171522,0.0004143,3]
[394240909,1763402854099,-189.96594649,0.00032877,120]
[394240930,1763403032259,-446.0,0.00021899,2]
[394240931,1763403032269,-5861.33085826,0.000219,2]
[394240956,1763403032991,-10948.459154,0.000219,2]
[394241027,1763403038597,-16878.9241326,0.000219,2]
[394241029,1763403038609,-16311.28585514,0.000219,2]
[394241031,1763403038619,-3500.0,0.000219,2]
[394241033,1763403038629,-1084.0,0.000219,2]
[394241035,1763403038638,-2243.20902485,0.0003204,2]
[394241037,1763403038648,-413.0,0.00032181,2]
[394241039,1763403038657,-178.78963408,0.00032211,2]
[394241041,1763403038666,-4810.03405351,0.00032877,120]
[394241043,1763403038676,-5000.0,0.00032877,120]
[394241045,1763403038685,-588.14349784,0.00032877,120]
[394241047,1763403038694,-2243.20902482,0.00034449,2]
[394241048,1763403038703,-413.0,0.00035181,2]
[394241050,1763403038712,-500.0,0.000365,30]
[394241052,1763403038721,-2243.20902482,0.00036857,2]
[394241055,1763403038731,-896.28,0.00037998,10]
[394241057,1763403038740,-746.9,0.00037998,10]
[394241058,1763403038750,-622.42,0.00037998,10]
[394241061,1763403038760,-100000.0,0.00038008,30]
[394241063,1763403038769,-100000.0,0.00038008,30]
[394241065,1763403038779,-100000.0,0.00038008,30]
[394241067,1763403038788,-13120.5943173,0.00038008,30]
[394241069,1763403038803,-86879.4056827,0.00038008,30]
[394241071,1763403038813,-100000.0,0.00038008,30]
[394241073,1763403038822,-100000.0,0.00038008,30]
[394241075,1763403038832,-58998.0,0.00038008,30]
[394241077,1763403038841,-250.0,0.00038008,10]
[394241078,1763403038851,-250.0,0.00038008,10]
[394241080,1763403038860,-250.0,0.00038008,10]
[394241082,1763403038870,-307.453481,0.00038008,10]
[394241084,1763403038880,-6189.79,0.000381,14]
[394241086,1763403038890,-1374.87,0.000381,30]
[394241088,1763403038899,-160.68,0.000381,7]
[394241090,1763403038909,-496.51,0.000381,14]
[394241092,1763403038918,-413.0,0.00038181,2]
[394241094,1763403038928,-150.0,0.00038356,5]
[394241096,1763403038938,-600.0,0.00038767,90]
[394241098,1763403038947,-830.08,0.00038949,2]
[394241100,1763403038957,-250.0,0.00039178,5]
[394241102,1763403038967,-2243.20902482,0.00039266,2]
[394241104,1763403038976,-500.0,0.00039833,30]
[394241106,1763403038987,-350.0,0.0004,5]
[394241108,1763403038996,-1660.15,0.00040803,2]
[394241110,1763403039006,-450.0,0.00040822,5]
[394241111,1763403039016,-64598.7762471,0.00041085,3]
[394241113,1763403039026,-1088.50184456,0.00041085,3]
[394241115,1763403039036,-500.0,0.00041095,120]
[394241117,1763403039047,-500.0,0.00041095,120]
[394241119,1763403039060,-9523.3,0.00041095,3]
[394241121,1763403039070,-500.0,0.00041095,120]
[394241123,1763403039080,-500.0,0.00041095,120]
[394241125,1763403039090,-500.0,0.00041095,120]
[394241127,1763403039100,-500.0,0.00041095,120]
[394241129,1763403039109,-1301.49,0.00041095,120]
[394241131,1763403039119,-500.0,0.00041095,120]
[394241133,1763403039128,-500.0,0.00041095,10]
[394241135,1763403039138,-604.07374887,0.00041095,120]
[394241137,1763403039147,-500.0,0.00041095,120]
[394241139,1763403039157,-500.0,0.00041095,120]
[394241141,1763403039166,-1485.86,0.00041095,120]
[394241143,1763403039175,-500.0,0.00041095,120]
[394241145,1763403039185,-615.49948266,0.00041095,120]
[394241147,1763403039194,-216.28621101,0.00041095,120]
[394241149,1763403039203,-500.0,0.00041095,120]
[394241151,1763403039212,-725.61,0.00041095,120]
[394241153,1763403039221,-1000.0,0.00041095,2]
[394241154,1763403039231,-670.29,0.00041095,7]
[394241156,1763403039239,-614.13,0.00041095,7]
[394241158,1763403039248,-883.53,0.00041095,120]
[394241160,1763403039258,-1687.03,0.00041095,2]
[394241162,1763403039268,-500.0,0.00041095,120]
[394241164,1763403039278,-500.0,0.00041095,120]
[394241166,1763403039287,-500.0,0.00041095,120]
[394241177,1763403039387,-500.0,0.00041095,120]
[394241179,1763403039402,-500.0,0.00041095,120]
[394241181,1763403039414,-500.0,0.00041095,120]
[394241183,1763403039424,-169.57306578,0.00041096,31]
[394241185,1763403039433,-413.0,0.00041181,2]
[394241187,1763403039443,-500.0,0.00041369,120]
[394241189,1763403039452,-500.0,0.00041369,120]
[394241191,1763403039463,-9523.3,0.00041369,3]
[394241193,1763403039473,-452.89448811,0.00041369,120]
[394241195,1763403039483,-500.0,0.00041369,120]
[394241197,1763403039494,-507.24053095,0.00041369,120]
[394241199,1763403039503,-500.0,0.00041369,120]
[394241201,1763403039513,-1301.49,0.00041369,120]
[394241203,1763403039523,-636.54326752,0.00041369,120]
[394241205,1763403039532,-500.0,0.00041369,10]
[394241207,1763403039542,-500.0,0.00041369,120]
[394241208,1763403039555,-500.0,0.00041369,120]
[394241210,1763403039564,-1485.86,0.00041369,120]
[394241212,1763403039574,-500.0,0.00041369,120]
[394241214,1763403039584,-500.0,0.00041369,120]
[394241216,1763403039593,-725.61,0.00041369,120]
[394241218,1763403039603,-1000.0,0.00041369,2]
[394241220,1763403039612,-670.29,0.00041369,7]
[394241222,1763403039621,-614.13,0.00041369,7]
[394241224,1763403039630,-883.53,0.00041369,120]
[394241226,1763403039639,-1687.03,0.00041369,2]
[394241228,1763403039648,-500.0,0.00041369,120]
[394241230,1763403039657,-500.0,0.00041369,120]
[394241232,1763403039667,-500.0,0.00041369,120]
[394241234,1763403039676,-500.0,0.00041369,120]
[394241236,1763403039686,-500.0,0.00041369,120]
[394241238,1763403039695,-10122.4480366,0.00041375,2]
[394241240,1763403039704,-258395.104988,0.0004143,3]
[394241242,1763403039713,-20681.5350466,0.0004143,3]
[394241244,1763403039722,-1405919.75759332,0.0004144,30]
[394241246,1763403039734,-3793.74595253,0.0004144,30]
[394241313,1763403040372,-15675.435403,0.0004144,30]
[394241315,1763403040383,-322.10681341,0.0004144,30]
[394241625,1763403043590,-5000.0,0.00032877,120]
[394241627,1763403043600,-518.68,0.00037998,10]
[394241629,1763403043610,-11816.33535353,0.0004144,30]
[394241631,1763403043622,-1462.0378706,0.0004144,30]
[394241668,1763403043962,-88497.98100433,0.0004144,30]
[394241840,1763403047482,-2559.13793,0.0004144,30]
[394241842,1763403361584,150.49,5e-05,2]
[394241843,1763403361863,150.49,5.2e-05,2]
[394241844,1763403362243,150.49,5.3e-05,2]
[394241845,1763403362570,150.49,5.5e-05,2]
[394241846,1763403362947,150.49,5.6e-05,2]
[394241847,1763403363270,150.49,5.8e-05,2]
[394241848,1763403363559,150.49,5.9e-05,2]
[394241849,1763403363855,150.49,6.1e-05,2]
[394241850,1763403364181,150.49,6.2e-05,2]
[394241851,1763403364516,150.49,6.4e-05,2]
[394241852,1763403364832,150.49,6.5e-05,2]
[394241853,1763403365222,150.49,6.7e-05,2]
[394241854,1763403365515,150.49,6.8e-05,2]
[394241855,1763403365788,150.49,7e-05,2]
[394241856,1763403366064,150.49,7.1e-05,2]
[394241857,1763403366394,150.49,7.3e-05,2]
[394241858,1763403366674,150.49,7.4e-05,2]
[394241859,1763403367018,150.49,7.6e-05,2]
[394241860,1763403367289,150.49,7.7e-05,2]
[394241861,1763403367583,150.49,7.9e-05,2]
[394241862,1763403367869,150.49,8e-05,2]
[394241863,1763403368275,150.49,8.2e-05,2]
[394241864,1763403368486,150.49,8.3e-05,2]
[394241865,1763403368768,150.49,8.5e-05,2]
[394241866,1763403369104,150.49,8.7e-05,2]
[394241867,1763403369385,150.49,8.8e-05,2]
[394241868,1763403369668,150.49,9e-05,2]
[394241869,1763403369938,150.49,9.1e-05,2]
[394241870,1763403370222,150.49,9.3e-05,2]
[394241871,1763403370505,150.49,9.4e-05,2]
[394241872,1763403370871,150.49,9.6e-05,2]
[394241873,1763403371172,150.49,9.7e-05,2]
[394241874,1763403371444,150.49,9.9e-05,2]
[394241875,1763403372394,150.49,0.0001,2]
[394241876,1763403372760,150.49,0.000102,2]
[394241877,1763403373040,150.49,0.000103,2]
[394241878,1763403373391,150.49,0.000105,2]
[394241879,1763403373760,150.49,0.000106,2]
[394241880,1763403374109,150.49,0.000108,2]
[394241881,1763403374427,150.49,0.000109,2]
[394241882,1763403374752,150.49,0.000111,2]
[394241883,1763403375042,150.49,0.000112,2]
[394241884,1763403375347,150.49,0.000114,2]
[394241885,1763403375755,150.49,0.000115,2]
[394241886,1763403376036,150.49,0.000117,2]
[394241887,1763403376326,150.49,0.000118,2]
[394241888,1763403376638,150.49,0.00012,2]
[394241889,1763403376913,150.49,0.000121,2]
[394241890,1763403377210,150.49,0.000123,2]
[394241891,1763403377490,150.49,0.000125,2]
[394241892,1763403422229,151.85,5e-05,2]
[394241893,1763403422511,151.85,5.3e-05,2]
[394241894,1763403422803,151.85,5.6e-05,2]
[394241895,1763403423141,151.85,5.9e-05,2]
[394241896,1763403423521,151.85,6.2e-05,2]
[394241897,1763403423824,151.85,6.6e-05,2]
[394241898,1763403424137,151.85,6.9e-05,2]
[394241899,1763403424441,151.85,7.2e-05,2]
[394241900,1763403424726,151.85,7.5e-05,2]
[394241901,1763403425019,151.85,7.8e-05,2]
[394241902,1763403425293,151.85,8.1e-05,2]
[394241903,1763403425603,151.85,8.4e-05,2]
[394241904,1763403425990,151.85,8.7e-05,2]
[394241905,1763403426195,151.85,9e-05,2]
[394241906,1763403426550,151.85,9.3e-05,2]
[394241907,1763403426843,151.85,9.7e-05,2]
[394241908,1763403427138,151.85,0.0001,2]
[394241909,1763403427440,151.85,0.000103,2]
[394241910,1763403427784,151.85,0.000106,2]
[394241911,1763403428030,151.85,0.000109,2]
[394241912,1763403428591,151.85,0.000112,2]
[394241913,1763403428895,151.85,0.000115,2]
[394241914,1763403429263,151.85,0.000118,2]
[394241915,1763403429579,151.85,0.000121,2]
[394241916,1763403481634,151.79,5e-05,2]
[394241917,1763403542239,150.01,5e-05,2]
[394241918,1763403542530,150.01,5.3e-05,2]
[394241919,1763403543120,150.01,5.6e-05,2]
[394241920,1763403543577,150.01,6e-05,2]
[394241921,1763403543892,150.01,6.3e-05,2]
[394241922,1763403544173,150.01,6.6e-05,2]
[394241923,1763403544454,150.01,6.9e-05,2]
[394241924,1763403544743,150.01,7.3e-05,2]
[394241925,1763403545020,150.01,7.6e-05,2]
[394241926,1763403545293,150.01,7.9e-05,2]
[394241927,1763403545576,150.01,8.2e-05,2]
[394241928,1763403545844,150.01,8.6e-05,2]
[394241929,1763403546133,150.01,8.9e-05,2]
[394241930,1763403546472,150.01,9.2e-05,2]
[394241931,1763403546782,150.01,9.5e-05,2]
[394241932,1763403547056,150.01,9.9e-05,2]
[394241933,1763403547334,150.01,0.000102,2]
[394241934,1763403547620,150.01,0.000105,2]
[394241936,1763403548645,150.01,0.000108,2]
[394241937,1763403548963,150.01,0.000112,2]
[394241938,1763403549319,150.01,0.000115,2]
[394241939,1763403549687,150.01,0.000118,2]
[394241940,1763403549973,150.01,0.000121,2]
[394241941,1763403550267,150.01,0.000125,2]
[394241942,1763403721784,150.67,5e-05,2]
[394241943,1763403722050,150.67,5.2e-05,2]
[394241944,1763403722318,150.67,5.3e-05,2]
[394241945,1763403723227,150.67,5.5e-05,2]
[394241946,1763403723564,150.67,5.6e-05,2]
[394241947,1763403723892,150.67,5.8e-05,2]
[394241948,1763403724218,150.67,6e-05,2]
[394241949,1763403724492,150.67,6.1e-05,2]
[394241950,1763403724844,150.67,6.3e-05,2]
[394241951,1763403726752,150.67,6.4e-05,2]
[394241952,1763403727094,150.67,6.6e-05,2]
[394241953,1763403727542,150.67,6.7e-05,2]
[394241954,1763403727950,150.67,6.9e-05,2]
[394241955,1763403728232,150.67,7.1e-05,2]
[394241956,1763403728520,150.67,7.2e-05,2]
[394241957,1763403728867,150.67,7.4e-05,2]
[394241958,1763403729180,150.67,7.5e-05,2]
[394241959,1763403729454,150.67,7.7e-05,2]
[394241960,1763403729737,150.67,7.9e-05,2]
[394241961,1763403730071,150.67,8e-05,2]
[394241962,1763403730407,150.67,8.2e-05,2]
[394241963,1763403730686,150.67,8.3e-05,2]
[394241964,1763403730976,150.67,8.5e-05,2]
[394241965,1763403731259,150.67,8.6e-05,2]
[394241966,1763403731544,150.67,8.8e-05,2]
[394241967,1763403731825,150.67,9e-05,2]
[394241968,1763403732106,150.67,9.1e-05,2]
[394241969,1763403732444,150.67,9.3e-05,2]
[394241970,1763403732812,150.67,9.4e-05,2]
[394241971,1763403733058,150.67,9.6e-05,2]
[394241972,1763403733333,150.67,9.8e-05,2]
[394241973,1763403733661,150.67,9.9e-05,2]
[394241974,1763403733988,150.67,0.000101,2]
[394241975,1763403734283,150.67,0.000102,2]
[394241976,1763403734569,150.67,0.000104,2]
[394241977,1763403735000,150.67,0.000106,2]
[394241978,1763403735278,150.67,0.000107,2]
[394241979,1763403735557,150.67,0.000109,2]
[394241980,1763403735834,150.67,0.00011,2]
[394241981,1763403736122,150.67,0.000112,2]
[394241982,1763403736466,150.67,0.000113,2]
[394241983,1763403736844,150.67,0.000115,2]
[394241984,1763403737175,150.67,0.000117,2]
[394241985,1763403737451,150.67,0.000118,2]
[394241986,1763403737743,150.67,0.00012,2]
[394241987,1763403738011,150.67,0.000121,2]
[394241988,1763403738291,150.67,0.000123,2]
[394241990,1763403781354,150.5,5e-05,2]
[394241992,1763403842452,233.27,5e-05,2]
[394241999,1763404005101,-284.08,0.00013699,2]
[394242000,1763404005122,-202.60123857,0.00018524,2]
[394242004,1763404034089,-278.30495642,0.00018711,2]
[394242005,1763404034115,-278.30495642,0.000189,2]
[394242006,1763404034145,-1058.0,0.00021464,2]
[394242007,1763404034166,-176.755,0.0003114,28]
[394242008,1763404034188,-413.0,0.00032182,2]
[394242009,1763404034211,-798.38,0.00032281,2]
[394242010,1763404034234,-1596.77,0.00033818,2]
[394242011,1763404034258,-365.853,0.00035182,2]
[394242012,1763404034283,-2395.15,0.00035356,2]
[394242013,1763404034309,-3193.53,0.00036893,2]
[394242014,1763404034333,-163.252764,0.00037012,20]
[394242015,1763404034357,-230.03,0.00037965,10]
[394242016,1763404034380,-393.9,0.00037965,10]
[394242017,1763404034402,-500.0,0.00037974,7]
[394242018,1763404034426,-500.0,0.00037974,7]
[394242019,1763404034447,-500.0,0.00037974,7]
[394242020,1763404034469,-500.0,0.00037974,7]
[394242021,1763404034491,-500.0,0.00037974,7]
[394242022,1763404034517,-500.0,0.00037974,7]
[394242023,1763404034541,-575.14940891,0.00037974,7]
[394242024,1763404034565,-500.0,0.00037974,7]
[394242025,1763404034588,-500.0,0.00037974,7]
[394242026,1763404034615,-3991.92,0.00038328,2]
[394242027,1763404034636,-150.0,0.00038356,5]
[394242028,1763404034656,-250.0,0.00039178,5]
[394242029,1763404034679,-10000.0,0.000393,20]
[394242030,1763404034707,-4790.3,0.00039861,2]
[394242031,1763404034731,-1024.14356424,0.0004,10]
[394242032,1763404034755,-350.0,0.0004,5]
[394242033,1763404034779,-321.82134135,0.00040023,2]
[394242034,1763404034801,-450.0,0.00040822,5]
[394242035,1763404034820,-300.0,0.00040986,5]
[394242036,1763404034844,-703.53116536,0.00041,120]
[394242037,1763404034864,-164.21721063,0.00041,120]
[394242038,1763404034885,-160.56872698,0.00041,120]
[394242039,1763404034906,-314.31444781,0.00041,120]
[394242040,1763404034928,-271.44027973,0.00041,120]
[394242041,1763404034949,-1121.60451241,0.00041025,28]
[394242042,1763404034969,-500.0,0.00041095,120]
[394242043,1763404034989,-500.0,0.00041095,60]
[394242044,1763404035011,-500.0,0.00041095,2]
[394242045,1763404035030,-500.0,0.00041095,120]
[394242046,1763404035050,-500.0,0.00041095,7]
[394242047,1763404035070,-1758.18,0.00041095,60]
[394242048,1763404035195,-500.0,0.00041095,120]
[394242049,1763404035227,-1193.04,0.00041095,120]
[394242050,1763404035248,-250.80421834,0.00041095,120]
[394242051,1763404035269,-500.0,0.00041095,120]
[394242052,1763404035290,-500.0,0.00041095,120]
[394242053,1763404035311,-500.0,0.00041095,120]
[394242054,1763404035332,-500.0,0.00041095,120]
[394242055,1763404035351,-809.9,0.00041095,120]
[394242056,1763404035370,-500.0,0.00041095,7]
[394242057,1763404035391,-500.0,0.00041095,120]
[394242058,1763404035412,-562.96,0.00041095,7]
[394242059,1763404035432,-703.37,0.00041095,120]
[394242060,1763404035452,-500.0,0.00041095,120]
[394242061,1763404035473,-500.0,0.00041095,120]
[394242062,1763404035494,-500.0,0.00041095,120]
[394242063,1763404035518,-500.0,0.00041095,120]
[394242064,1763404035538,-1000.0,0.00041095,2]
[394242065,1763404035558,-500.0,0.00041095,120]
[394242066,1763404035578,-500.0,0.00041095,120]
[394242067,1763404035599,-500.0,0.00041095,120]
[394242068,1763404035621,-500.0,0.00041095,120]
[394242069,1763404035644,-609.16726805,0.00041095,20]
[394242070,1763404035667,-500.0,0.00041095,120]
[394242071,1763404035689,-196.23576626,0.00041095,30]
[394242072,1763404035713,-500.0,0.00041095,120]
[394242073,1763404035737,-500.0,0.00041095,120]
[394242074,1763404035766,-500.0,0.00041095,120]
[394242075,1763404035787,-8729.69,0.00041095,3]
[394242076,1763404035813,-1000.0,0.00041095,2]
[394242077,1763404035838,-1362.04,0.00041095,120]
[394242078,1763404035863,-500.0,0.00041095,120]
[394242079,1763404035884,-614.43,0.00041095,7]
[394242080,1763404035906,-1546.44,0.00041095,2]
[394242081,1763404035928,-665.14,0.00041095,120]
[394242082,1763404035950,-500.0,0.00041095,2]
[394242083,1763404035971,-500.0,0.00041095,120]
[394242084,1763404035991,-500.0,0.00041095,120]
[394242085,1763404036017,-500.0,0.00041095,120]
[394242086,1763404036039,-1559.57,0.00041095,120]
[394242087,1763404036061,-4167.62,0.00041095,120]
[394242088,1763404036083,-500.0,0.00041095,10]
[394242089,1763404036106,-600.32820086,0.00041095,120]
[394242090,1763404036128,-3448.83,0.00041095,120]
[394242091,1763404036151,-500.0,0.00041096,120]
[394242092,1763404036176,-366.22,0.00041096,120]
[394242093,1763404036202,-48809.7536554,0.00041359,3]
[394242094,1763404036226,-500.0,0.00041369,120]
[394242095,1763404036259,-500.0,0.00041369,60]
[394242096,1763404036284,-500.0,0.00041369,2]
[394242097,1763404036307,-500.0,0.00041369,120]
[394242098,1763404036328,-500.0,0.00041369,7]
[394242099,1763404036351,-1758.18,0.00041369,60]
[394242100,1763404036373,-500.0,0.00041369,120]
[394242101,1763404036396,-1193.04,0.00041369,120]
[394242102,1763404036418,-500.0,0.00041369,120]
[394242103,1763404036440,-500.0,0.00041369,120]
[394242104,1763404036460,-500.0,0.00041369,120]
[394242105,1763404036480,-809.9,0.00041369,120]
[394242106,1763404036503,-500.0,0.00041369,7]
[394242107,1763404036524,-500.0,0.00041369,120]
[394242108,1763404036544,-562.96,0.00041369,7]
[394242109,1763404036564,-703.37,0.00041369,120]
[394242110,1763404036591,-500.0,0.00041369,120]
[394242111,1763404036611,-545.5058876,0.00041369,120]
[394242112,1763404036631,-500.0,0.00041369,120]
[394242113,1763404036651,-1000.0,0.00041369,2]
[394242114,1763404036672,-500.0,0.00041369,120]
[394242115,1763404036691,-500.0,0.00041369,120]
[394242116,1763404036716,-500.0,0.00041369,120]
[394242117,1763404036736,-627.00766877,0.00041369,120]
[394242118,1763404036760,-500.0,0.00041369,120]
[394242119,1763404036781,-500.0,0.00041369,120]
[394242120,1763404036801,-500.0,0.00041369,120]
[394242121,1763404036820,-8729.69,0.00041369,3]
[394242122,1763404036843,-1362.04,0.00041369,120]
[394242123,1763404036864,-614.43,0.00041369,7]
[394242124,1763404036887,-1546.44,0.00041369,2]
[394242125,1763404036909,-500.0,0.00041369,120]
[394242126,1763404036929,-665.14,0.00041369,120]
[394242127,1763404036949,-500.0,0.00041369,2]
[394242128,1763404036970,-628.83317433,0.00041369,120]
[394242129,1763404036990,-500.0,0.00041369,120]
[394242130,1763404037014,-500.0,0.00041369,120]
[394242131,1763404037038,-1559.57,0.00041369,120]
[394242132,1763404037058,-4167.62,0.00041369,120]
[394242133,1763404037078,-521.12666009,0.00041369,10]
[394242134,1763404037100,-3448.83,0.00041369,120]
[394242135,1763404037122,-500.0,0.0004137,120]
[394242136,1763404037144,-5588.68,0.00041395,2]
[394242137,1763404037166,-146429.260966,0.0004143,3]
[394242138,1763404037187,-127639.6619,0.0004144,30]
[394242139,1763404037207,-250.0,0.00041473,10]
[394242140,1763404037230,-160.68,0.000415,14]
[394242141,1763404037251,-48809.7536554,0.00041633,3]
[394242142,1763404037272,-500.0,0.00041643,120]
[394242143,1763404037293,-588.22947392,0.00041643,60]
[394242144,1763404037313,-500.0,0.00041643,7]
[394242145,1763404037334,-1758.18,0.00041643,60]
[394242146,1763404037355,-500.0,0.00041643,120]
[394242147,1763404037377,-1193.04,0.00041643,120]
[394242148,1763404037398,-500.0,0.00041643,120]
[394242149,1763404037418,-500.0,0.00041643,120]
[394242150,1763404037520,-500.0,0.00041643,120]
[394242151,1763404037544,-809.9,0.00041643,120]
[394242152,1763404037598,-500.0,0.00041643,7]
[394242153,1763404037623,-500.0,0.00041643,120]
[394242154,1763404037644,-562.96,0.00041643,7]
[394242155,1763404037666,-703.37,0.00041643,120]
[394242156,1763404037686,-482.09657149,0.00041643,120]
[394242157,1763404037708,-526.6638162,0.00041643,120]
[394242158,1763404037732,-1000.0,0.00041643,2]
[394242159,1763404037754,-500.0,0.00041643,120]
[394242160,1763404037776,-500.0,0.00041643,120]
[394242161,1763404037796,-500.0,0.00041643,120]
[394242162,1763404037817,-500.0,0.00041643,120]
[394242163,1763404037838,-500.0,0.00041643,120]
[394242164,1763404037862,-8729.69,0.00041643,3]
[394242165,1763404037883,-1362.04,0.00041643,120]
[394242166,1763404037903,-614.43,0.00041643,7]
[394242167,1763404037923,-1546.44,0.00041643,2]
[394242168,1763404037945,-500.0,0.00041643,120]
[394242169,1763404037967,-665.14,0.00041643,120]
[394242170,1763404037987,-500.0,0.00041643,2]
[394242171,1763404038010,-500.0,0.00041643,120]
[394242172,1763404038031,-500.0,0.00041643,120]
[394242173,1763404038052,-1559.57,0.00041643,120]
[394242174,1763404038074,-4167.62,0.00041643,120]
[394242175,1763404038096,-3448.83,0.00041643,120]
[394242176,1763404038116,-500.0,0.00041644,120]
[394242177,1763404038137,-550.0,0.00041644,10]
[394242178,1763404038159,-163.252764,0.00041669,10]
[394242179,1763404038180,-5570.81,0.000417,14]
[394242180,1763404038201,-1374.87,0.000417,30]
[394242181,1763404038224,-163.252764,0.0004173,20]
[394242182,1763404038245,-48809.7536554,0.00041907,3]
[394242183,1763404038267,-500.0,0.00041917,120]
[394242184,1763404038287,-391.88476472,0.00041917,7]
[394242185,1763404038307,-1758.18,0.00041917,60]
[394242186,1763404038328,-500.0,0.00041917,120]
[394242187,1763404038349,-1193.04,0.00041917,120]
[394242188,1763404038370,-500.0,0.00041917,120]
[394242189,1763404038390,-500.0,0.00041917,120]
[394242190,1763404038410,-500.0,0.00041917,120]
[394242191,1763404038430,-809.9,0.00041917,120]
[394242192,1763404038451,-500.0,0.00041917,7]
[394242193,1763404038471,-500.0,0.00041917,120]
[394242194,1763404038492,-562.96,0.00041917,7]
[394242195,1763404038516,-703.37,0.00041917,120]
[394242196,1763404038536,-1000.0,0.00041917,2]
[394242197,1763404038557,-500.0,0.00041917,120]
[394242198,1763404038577,-500.0,0.00041917,120]
[394242199,1763404038599,-481.8741571,0.00041917,120]
[394242200,1763404038618,-500.0,0.00041917,120]
[394242201,1763404038639,-500.0,0.00041917,120]
[394242202,1763404038658,-8729.69,0.00041917,3]
[394242203,1763404038680,-1362.04,0.00041917,120]
[394242204,1763404038703,-614.43,0.00041917,7]
[394242205,1763404038729,-1546.44,0.00041917,2]
[394242206,1763404038756,-500.0,0.00041917,120]
[394242207,1763404038778,-665.14,0.00041917,120]
[394242208,1763404038799,-500.0,0.00041917,2]
[394242209,1763404038820,-500.0,0.00041917,120]
[394242210,1763404038841,-500.0,0.00041917,120]
[394242211,1763404038863,-1559.57,0.00041917,120]
[394242212,1763404038884,-4167.62,0.00041917,120]
[394242213,1763404038905,-3448.83,0.00041917,120]
[394242214,1763404038926,-500.0,0.00041918,120]
[394242215,1763404038946,-446.86,0.00042,14]
[394242216,1763404038966,-500.0,0.00042021,10]
[394242217,1763404038988,-163.252764,0.00042043,2]
[394242218,1763404039013,-400.0,0.00042082,7]
[394242219,1763404039036,-500.0,0.00042191,120]